bitfinex/quotes_BTCUSD_20241003
["timestamp","ask_amount","ask_price","bid_price","bid_amount"]
[1727973578078,0.078917,60427.0,60412.0,0.165528]
[1727973578079,0.16552,60416.0,60412.0,0.165528]
[1727973578722,0.165511,60419.0,60414.0,0.165523]
[1727973578929,0.165515,60418.0,60414.0,0.165524]
[1727973579357,0.165518,60417.0,60414.0,0.165523]
[1727973579621,0.165513,60419.0,60414.0,0.331045]
[1727973579829,0.331034,60417.0,60412.0,0.002]
[1727973580078,0.165527,60413.0,60412.0,0.002]
[1727973580780,0.099,60423.0,60412.0,0.002]
[1727973580781,0.331048,60415.0,60412.0,0.002]
[1727973581015,0.331048,60415.0,60414.0,0.002]
[1727973581016,0.496569,60415.0,60414.0,0.002]
[1727973581460,0.331034,60417.0,60404.0,0.24858514]
[1727973581704,0.165549,60405.0,60404.0,0.24858514]
[1727973582125,0.331085,60408.0,60402.0,0.165556]
[1727973582338,0.331085,60408.0,60401.0,0.331119]
[1727973582339,0.165547,60406.0,60403.0,0.165554]
[1727973582754,0.165546,60406.0,60403.0,0.165554]
[1727973583167,0.165542,60408.0,60404.0,0.16555]
[1727973583372,0.165546,60406.0,60402.0,0.496663]
[1727973583597,0.165546,60406.0,60403.0,0.165554]
[1727973583805,0.57963814,60414.0,60398.0,0.023]
[1727973583806,0.24858514,60414.0,60398.0,0.023]
[1727973584044,0.165545,60407.0,60404.0,0.16555]
[1727973584260,0.165545,60407.0,60404.0,0.005]
[1727973584473,0.165542,60408.0,60404.0,0.165549]
[1727973584709,0.331074,60410.0,60404.0,0.165549]
[1727973584710,0.165544,60407.0,60404.0,0.165549]
[1727973585135,0.331052,60414.0,60404.0,0.24858514]
[1727973585414,0.165531,60412.0,60406.0,0.165544]
[1727973585631,0.165531,60412.0,60408.0,0.165538]
[1727973585859,0.165519,60416.0,60409.0,0.331075]
[1727973586068,0.165525,60414.0,60409.0,0.165535]
[1727973586299,0.165529,60413.0,60409.0,0.165535]
[1727973586584,0.165522,60415.0,60409.0,0.165536]
[1727973586838,0.331024,60419.0,60414.0,0.165524]
[1727973587054,0.165517,60417.0,60413.0,0.165526]
[1727973587727,0.165517,60417.0,60414.0,0.165524]
[1727973587961,0.331027,60418.0,60409.0,0.023]
[1727973588214,0.165516,60417.0,60413.0,0.165525]
[1727973588427,0.04987311,60427.0,60406.0,0.023]
[1727973588428,0.33101,60422.0,60406.0,0.023]
[1727973588641,0.1,60422.0,60414.0,0.165523]
[1727973588850,0.331014,60421.0,60411.0,0.33106]
[1727973589062,0.331025,60419.0,60414.0,0.165523]
[1727973589370,0.331032,60418.0,60406.0,0.023]
[1727973589605,0.165526,60414.0,60411.0,0.24858514]
[1727973589825,0.165526,60414.0,60403.0,0.331104]
[1727973589826,0.165544,60407.0,60404.0,0.41413514]
[1727973590048,0.33108,60409.0,60404.0,0.24858514]
[1727973590296,0.165543,60407.0,60404.0,0.41413514]
[1727973590536,0.331069,60411.0,60399.0,0.798127]
[1727973590750,0.165557,60402.0,60399.0,0.165565]
[1727973590997,0.24858514,60414.0,60400.0,0.33112]
[1727973590998,0.165548,60406.0,60400.0,0.33112]
[1727973591212,0.165548,60406.0,60404.0,0.01]
[1727973591434,0.165548,60406.0,60403.0,0.165554]
[1727973591657,0.165543,60407.0,60403.0,0.165554]
[1727973591912,0.165543,60407.0,60404.0,0.16555]
[1727973592115,0.1,60416.0,60413.0,0.165525]
[1727973592341,0.24858514,60414.0,60413.0,0.165525]
[1727973592570,0.26552,60416.0,60413.0,0.165525]
[1727973592804,0.1,60416.0,60415.0,0.165521]
[1727973593075,0.1,60416.0,60411.0,0.331061]
[1727973593303,0.165524,60414.0,60411.0,0.165532]
[1727973594170,0.165519,60416.0,60413.0,0.165525]
[1727973594427,0.331029,60418.0,60410.0,0.57965514]
[1727973594428,0.165522,60415.0,60412.0,0.165529]
[1727973594628,0.331029,60418.0,60412.0,0.331058]
[1727973594865,0.330997,60424.0,60415.0,0.331042]
[1727973595103,0.04987311,60427.0,60414.0,0.165522]
[1727973595104,0.165514,60418.0,60414.0,0.165522]
[1727973595323,0.431798,60427.0,60415.0,0.16552]
[1727973595324,0.331018,60420.0,60415.0,0.16552]
[1727973595551,0.165512,60419.0,60415.0,0.16552]
[1727973595782,0.165512,60419.0,60416.0,0.165517]
[1727973596449,0.165515,60418.0,60415.0,0.16552]
[1727973596932,0.16551,60419.0,60416.0,0.165518]
[1727973597172,0.431798,60427.0,60413.0,0.33105]
[1727973597173,0.331003,60423.0,60417.0,0.331032]
[1727973597397,0.331003,60423.0,60417.0,0.165515]
[1727973597398,0.165508,60420.0,60417.0,0.165515]
[1727973597834,0.165509,60420.0,60413.0,0.331053]
[1727973598049,0.331011,60421.0,60413.0,0.331053]
[1727973598050,0.331011,60421.0,60416.0,0.165517]
[1727973598235,0.24858514,60420.0,60405.0,0.023]
[1727973598523,0.165519,60416.0,60413.0,0.165526]
[1727973598738,0.28491927,60416.0,60404.0,0.24858514]
[1727973598959,0.331035,60417.0,60412.0,0.24858514]
[1727973599198,0.331035,60417.0,60404.0,0.24858514]
[1727973599199,0.165522,60415.0,60411.0,0.16553]
[1727973599411,0.165524,60415.0,60411.0,0.16553]
[1727973599643,0.24858514,60420.0,60412.0,0.165529]
[1727973599644,0.165521,60416.0,60412.0,0.165529]
[1727973599895,0.24858514,60420.0,60407.0,0.331085]
[1727973600131,0.34018514,60420.0,60405.0,0.24858514]
[1727973600346,0.165546,60406.0,60405.0,0.24858514]
[1727973600560,0.14065611,60420.0,60411.0,0.001]
[1727973600748,0.16553,60412.0,60411.0,0.001]
[1727973601008,0.33104,60416.0,60406.0,0.24858514]
[1727973601280,0.165528,60413.0,60409.0,0.331075]
[1727973601544,0.16553,60412.0,60409.0,0.165536]
[1727973602043,0.24858514,60419.0,60407.0,0.331082]
[1727973602283,0.165528,60413.0,60409.0,0.165535]
[1727973602547,0.331061,60412.0,60398.0,0.023]
[1727973602793,0.331044,60415.0,60404.0,0.24858514]
[1727973603057,0.331044,60415.0,60400.0,0.331163]
[1727973603058,0.331087,60407.0,60400.0,4e-05]
[1727973603307,0.165545,60407.0,60405.0,0.24858514]
[1727973603576,0.12264029,60417.0,60400.0,4e-05]
[1727973603577,0.80280441,60420.0,60400.0,4e-05]
[1727973603828,0.24858514,60413.0,60400.0,4e-05]
[1727973604052,0.165519,60416.0,60404.0,0.24858514]
[1727973604299,0.165523,60415.0,60410.0,0.165533]
[1727973604611,0.331037,60417.0,60412.0,0.165528]
[1727973604842,0.29764824,60420.0,60409.0,0.331073]
[1727973605089,0.165524,60414.0,60411.0,0.165531]
[1727973605581,0.165527,60413.0,60409.0,0.165535]
[1727973605832,0.165534,60411.0,60407.0,0.188542]
[1727973606088,0.165539,60409.0,60406.0,0.165543]
[1727973606353,0.165539,60409.0,60404.0,0.57968514]
[1727973606354,0.33107,60411.0,60400.0,4e-05]
[1727973606355,0.16556,60401.0,60400.0,4e-05]
[1727973606855,0.0490631,60407.0,60400.0,4e-05]
[1727973606856,0.331105,60404.0,60400.0,4e-05]
[1727973607109,0.18982441,60409.0,60400.0,4e-05]
[1727973607402,0.35538441,60401.0,60400.0,4e-05]
[1727973608459,0.35538441,60401.0,60400.0,0.00704]
[1727973608718,0.35538441,60401.0,60400.0,4e-05]
[1727973609007,0.35738441,60401.0,60400.0,4e-05]
[1727973609243,0.62758441,60401.0,60400.0,4e-05]
[1727973609498,0.88880321,60401.0,60400.0,4e-05]
[1727973609758,0.88803774,60401.0,60400.0,4e-05]
[1727973610016,0.88603774,60401.0,60400.0,0.00704]
[1727973610279,0.88803774,60401.0,60400.0,4e-05]
[1727973610537,1.01552077,60401.0,60400.0,0.00104]
[1727973610778,1.01552077,60401.0,60400.0,4e-05]
[1727973610779,0.85233406,60401.0,60400.0,4e-05]
[1727973611013,0.85233406,60401.0,60400.0,0.00104]
[1727973611235,0.85533406,60401.0,60400.0,0.00104]
[1727973611461,0.82580249,60401.0,60400.0,4e-05]
[1727973611704,0.73285103,60401.0,60400.0,0.00104]
[1727973611961,0.80630963,60401.0,60400.0,0.00104]
[1727973612252,0.27556,60401.0,60400.0,0.00104]
[1727973612739,0.27556,60401.0,60400.0,0.00204]
[1727973612982,0.26556,60401.0,60400.0,0.00104]
[1727973613233,0.17056,60401.0,60400.0,0.00104]
[1727973613697,0.16556,60401.0,60400.0,4e-05]
[1727973613939,0.17056,60401.0,60400.0,0.00104]
[1727973614219,0.17056,60401.0,60400.0,4e-05]
[1727973614473,0.27556,60401.0,60400.0,0.00204]
[1727973614738,0.32453938,60401.0,60400.0,0.00204]
[1727973614997,0.26556,60401.0,60400.0,0.00104]
[1727973615240,0.4000905,60401.0,60400.0,0.00104]
[1727973615480,0.3390186,60401.0,60400.0,0.00104]
[1727973615740,0.3390186,60401.0,60400.0,4e-05]
[1727973616220,0.3400186,60401.0,60400.0,4e-05]
[1727973616469,0.3390186,60401.0,60400.0,4e-05]
[1727973616713,0.26556,60401.0,60400.0,0.00104]
[1727973616946,0.49489461,60401.0,60400.0,0.00104]
[1727973617179,0.27056,60401.0,60400.0,4e-05]
[1727973617400,0.27056,60401.0,60400.0,0.00104]
[1727973617401,0.27556,60401.0,60400.0,0.00104]
[1727973617629,0.27056,60401.0,60400.0,0.00104]
[1727973617876,0.27056,60401.0,60400.0,0.00204]
[1727973617877,0.31955857,60401.0,60400.0,0.00204]
[1727973618127,0.27556,60401.0,60400.0,0.00204]
[1727973618592,0.43413587,60401.0,60400.0,0.00204]
[1727973618818,0.48113444,60401.0,60400.0,0.00204]
[1727973619037,0.51253587,60401.0,60400.0,0.00204]
[1727973619251,0.7329189,60401.0,60400.0,0.00204]
[1727973619498,0.73280364,60401.0,60400.0,0.00204]
[1727973620250,0.68384236,60401.0,60400.0,0.00204]
[1727973620492,0.61843587,60401.0,60400.0,0.00204]
[1727973620720,0.50878899,60401.0,60400.0,0.00204]
[1727973620934,0.46186,60401.0,60400.0,0.00204]
[1727973621390,0.265587,60391.0,60390.0,0.24858514]
[1727973621677,0.90016129,60391.0,60390.0,0.22872553]
[1727973621879,0.265598,60387.0,60386.0,0.000818]
[1727973622097,0.42878471,60387.0,60386.0,0.000818]
[1727973622355,0.43078471,60387.0,60386.0,0.000818]
[1727973623285,0.43078471,60387.0,60379.0,0.001634]
[1727973623286,0.267617,60380.0,60379.0,0.001634]
[1727973623588,0.55070803,60380.0,60379.0,0.001634]
[1727973623829,0.55270803,60380.0,60379.0,0.001634]
[1727973624030,0.71589474,60380.0,60379.0,0.001634]
[1727973624229,0.71389474,60380.0,60379.0,0.001634]
[1727973624817,0.80909474,60380.0,60379.0,0.001634]
[1727973625277,0.55074403,60367.0,60366.0,0.001634]
[1727973625958,0.265653,60367.0,60366.0,0.001634]
[1727973626170,0.3916052,60367.0,60366.0,0.001634]
[1727973626609,0.3986052,60367.0,60366.0,0.001634]
[1727973626861,0.272653,60367.0,60366.0,0.001634]
[1727973627113,0.265653,60367.0,60366.0,0.001634]
[1727973627568,0.268653,60367.0,60366.0,0.001634]
[1727973627573,0.268653,60367.0,60366.0,0.16729]
[1727973627574,0.003,60367.0,60366.0,0.16729]
[1727973627812,0.003,60367.0,60366.0,0.001634]
[1727973628058,0.003,60367.0,60366.0,0.16729]
[1727973628301,0.012,60367.0,60366.0,0.16729]
[1727973628514,0.009,60367.0,60366.0,0.16729]
[1727973628741,0.165646,60370.0,60366.0,0.16729]
[1727973628960,0.20897611,60367.0,60366.0,0.001634]
[1727973629227,0.169653,60367.0,60366.0,0.001634]
[1727973629456,0.45374403,60367.0,60366.0,0.001634]
[1727973629989,0.166653,60367.0,60366.0,0.001634]
[1727973630202,0.167653,60367.0,60366.0,0.001634]
[1727973630451,0.001,60367.0,60366.0,0.16729]
[1727973630911,0.001,60367.0,60366.0,0.19029]
[1727973631372,0.1,60376.0,60368.0,0.331297]
[1727973631373,0.265631,60376.0,60368.0,0.331297]
[1727973631614,0.265631,60376.0,60367.0,0.331304]
[1727973631615,0.24858514,60372.0,60367.0,0.331304]
[1727973631822,0.23398909,60376.0,60371.0,0.165641]
[1727973632042,0.24858514,60381.0,60369.0,0.0796]
[1727973632266,0.331275,60373.0,60369.0,0.0796]
[1727973632489,0.331275,60373.0,60370.0,0.165643]
[1727973632490,0.165637,60373.0,60370.0,0.165643]
[1727973633382,0.001,60376.0,60374.0,0.165633]
[1727973633648,0.001,60376.0,60372.0,0.331275]
[1727973633649,0.001,60376.0,60368.0,0.023817]
[1727973633887,0.001,60376.0,60375.0,0.165631]
[1727973634451,0.001,60376.0,60375.0,0.53361771]
[1727973634675,0.24858514,60390.0,60375.0,0.53361771]
[1727973634676,0.24858514,60390.0,60389.0,0.188593]
[1727973634886,0.24858514,60390.0,60389.0,0.270493]
[1727973635410,0.24858514,60399.0,60390.0,0.354175]
[1727973635664,0.41415214,60399.0,60394.0,0.165578]
[1727973635915,0.165583,60393.0,60389.0,0.0819]
[1727973636137,0.331131,60399.0,60391.0,0.331174]
[1727973636387,0.35021914,60401.0,60394.0,0.331155]
[1727973636610,0.35021914,60401.0,60395.0,0.165575]
[1727973636837,0.165563,60400.0,60396.0,0.165572]
[1727973637104,0.35021914,60401.0,60390.0,0.023]
[1727973637108,0.001634,60401.0,60400.0,0.165562]
[1727973637348,0.001634,60401.0,60400.0,0.188562]
[1727973638801,0.002634,60401.0,60400.0,0.188562]
[1727973639030,0.002634,60401.0,60400.0,0.191562]
[1727973639266,0.001634,60401.0,60400.0,0.19241024]
[1727973639491,0.001634,60401.0,60400.0,0.19275241]
[1727973639926,0.001634,60401.0,60400.0,0.191562]
[1727973640168,0.002634,60401.0,60400.0,0.195562]
[1727973641510,0.003634,60401.0,60400.0,0.205562]
[1727973644373,0.169194,60401.0,60400.0,0.017]
[1727973644588,0.24408221,60401.0,60400.0,0.017]
[1727973645427,0.169194,60401.0,60400.0,0.017]
[1727973645696,0.168194,60401.0,60400.0,0.007]
[1727973645971,0.165569,60398.0,60393.0,0.24858514]
[1727973646190,0.165566,60399.0,60394.0,0.331158]
[1727973646435,0.003634,60401.0,60390.0,0.331176]
[1727973646650,0.165574,60396.0,60393.0,0.165581]
[1727973646883,0.165567,60399.0,60395.0,0.165576]
[1727973647121,0.165569,60398.0,60393.0,0.16558]
[1727973647373,0.07401158,60401.0,60393.0,0.16558]
[1727973647374,0.07401158,60401.0,60393.0,0.001]
[1727973647631,0.331127,60400.0,60393.0,0.001]
[1727973647846,0.004634,60401.0,60394.0,0.32678514]
[1727973648057,0.004634,60401.0,60395.0,0.27158514]
[1727973648286,0.004634,60401.0,60400.0,0.188562]
[1727973648498,0.001634,60401.0,60400.0,0.188562]
[1727973648753,0.004634,60401.0,60400.0,0.188562]
[1727973648954,0.165566,60399.0,60394.0,0.023]
[1727973649232,0.004634,60401.0,60396.0,0.023]
[1727973649454,0.001634,60401.0,60390.0,0.331179]
[1727973649675,0.001634,60401.0,60392.0,0.023]
[1727973649895,0.16557,60398.0,60394.0,0.188577]
[1727973650794,0.001634,60401.0,60395.0,0.24858514]
[1727973651069,0.001634,60401.0,60400.0,0.188562]
[1727973651264,0.001634,60401.0,60400.0,0.19095398]
[1727973652162,0.005634,60401.0,60400.0,0.19095398]
[1727973652384,0.001634,60401.0,60400.0,0.19095398]
[1727973652858,0.002634,60401.0,60400.0,0.195562]
[1727973653318,0.002634,60401.0,60400.0,0.35874871]
[1727973653546,0.002634,60401.0,60400.0,0.43894871]
[1727973653775,0.002634,60401.0,60400.0,0.43898871]
[1727973654254,0.003634,60401.0,60400.0,0.44598871]
[1727973654741,0.002634,60401.0,60400.0,0.43898871]
[1727973655175,0.002634,60401.0,60400.0,0.44598871]
[1727973655392,0.003634,60401.0,60400.0,0.45998871]
[1727973655878,0.003634,60401.0,60400.0,0.296802]
[1727973656089,0.003634,60401.0,60400.0,0.216602]
[1727973656318,0.003634,60401.0,60400.0,0.21968634]
[1727973656554,0.003634,60401.0,60400.0,0.216602]
[1727973659375,0.003634,60401.0,60400.0,0.21773041]
[1727973659585,0.003634,60401.0,60400.0,0.216602]
[1727973661386,0.003634,60401.0,60400.0,0.21808658]
[1727973661614,0.002634,60401.0,60400.0,0.20408658]
[1727973661844,0.001634,60401.0,60400.0,0.19308658]
[1727973662109,0.002634,60401.0,60400.0,0.20008658]
[1727973662374,0.002634,60401.0,60400.0,0.64119925]
[1727973662631,0.002634,60401.0,60400.0,0.63788871]
[1727973663075,0.002634,60401.0,60400.0,0.63288871]
[1727973663303,0.002634,60401.0,60400.0,0.64642883]
[1727973663760,0.002634,60401.0,60400.0,0.65042883]
[1727973663979,0.001634,60401.0,60400.0,0.64342883]
[1727973664200,0.001634,60401.0,60400.0,0.63742883]
[1727973664459,0.001634,60401.0,60400.0,0.65449737]
[1727973664671,0.001634,60401.0,60400.0,0.66849737]
[1727973664672,0.002634,60401.0,60400.0,0.66849737]
[1727973665136,0.001634,60401.0,60400.0,0.65449737]
[1727973665360,0.003634,60401.0,60400.0,0.67749737]
[1727973665585,0.002634,60401.0,60400.0,0.262802]
[1727973665873,0.003634,60401.0,60400.0,0.193602]
[1727973666598,0.003634,60401.0,60400.0,0.179602]
[1727973666834,0.002634,60401.0,60400.0,0.179602]
[1727973667061,0.002634,60401.0,60400.0,0.189602]
[1727973667240,0.001634,60401.0,60400.0,0.175602]
[1727973667506,0.001634,60401.0,60400.0,0.198602]
[1727973667722,0.002634,60401.0,60400.0,0.207602]
[1727973668155,0.001634,60401.0,60400.0,0.188602]
[1727973668420,0.001634,60401.0,60400.0,0.02304]
[1727973668653,0.001634,60401.0,60400.0,0.02004]
[1727973668654,0.003634,60401.0,60400.0,0.02004]
[1727973668870,0.003634,60401.0,60400.0,0.00804]
[1727973668871,0.168194,60401.0,60400.0,0.00804]
[1727973669161,0.169194,60401.0,60400.0,0.01904]
[1727973669393,0.2269146,60401.0,60400.0,0.00804]
[1727973669865,0.2269146,60401.0,60400.0,0.01004]
[1727973670084,0.4218146,60401.0,60400.0,0.01004]
[1727973670333,0.4228146,60401.0,60400.0,0.02004]
[1727973670579,0.5036146,60401.0,60400.0,0.02004]
[1727973670816,0.5026146,60401.0,60400.0,0.01004]
[1727973671054,0.5136146,60401.0,60400.0,0.01104]
[1727973671529,0.5026146,60401.0,60400.0,0.01004]
[1727973671779,0.5136146,60401.0,60400.0,0.00104]
[1727973672024,0.455894,60401.0,60400.0,0.00104]
[1727973672272,0.463894,60401.0,60400.0,0.00204]
[1727973672514,0.463894,60401.0,60400.0,0.00104]
[1727973672769,0.472894,60401.0,60400.0,0.00204]
[1727973673001,0.442894,60401.0,60400.0,4e-05]
[1727973673484,0.451894,60401.0,60400.0,0.00104]
[1727973673725,0.461894,60401.0,60400.0,0.00104]
[1727973673964,0.6030139,60401.0,60400.0,0.00104]
[1727973674922,0.5930139,60401.0,60400.0,4e-05]
[1727973675651,0.6010139,60401.0,60400.0,0.00104]
[1727973675908,0.5860139,60401.0,60400.0,4e-05]
[1727973676180,0.243587,60391.0,60390.0,0.008]
[1727973676435,0.72317803,60391.0,60390.0,0.008]
[1727973676691,0.72317803,60391.0,60386.0,0.24858514]
[1727973676692,0.265598,60387.0,60386.0,0.24858514]
[1727973677210,0.331192,60388.0,60379.0,0.24940314]
[1727973677211,0.265617,60380.0,60379.0,0.24940314]
[1727973677448,0.55070803,60380.0,60379.0,0.24940314]
[1727973677954,0.265617,60380.0,60379.0,0.000818]
[1727973678211,0.331213,60384.0,60380.0,0.165615]
[1727973678212,0.165608,60384.0,60380.0,0.165615]
[1727973678460,0.1725,60391.0,60379.0,0.000818]
[1727973678461,0.002,60380.0,60379.0,0.000818]
[1727973678712,0.002,60380.0,60379.0,0.189438]
[1727973679920,0.1736,60387.0,60379.0,0.189438]
[1727973679921,0.1656,60387.0,60383.0,0.165608]
[1727973680156,0.57976714,60390.0,60380.0,0.023]
[1727973680157,0.165613,60382.0,60380.0,0.024]
[1727973680400,0.337215,60384.0,60380.0,0.024]
[1727973680401,0.165611,60383.0,60380.0,0.024]
[1727973680672,0.165617,60380.0,60379.0,0.000818]
[1727973680912,0.165617,60380.0,60379.0,0.002818]
[1727973681483,0.49060214,60380.0,60379.0,0.002818]
[1727973681698,0.342017,60380.0,60379.0,0.002818]
[1727973681939,0.342017,60380.0,60379.0,0.000818]
[1727973682179,0.5040943,60380.0,60379.0,0.000818]
[1727973682439,0.5040943,60380.0,60379.0,0.001818]
[1727973682440,0.5090943,60380.0,60379.0,0.001818]
[1727973682674,0.5040943,60380.0,60379.0,0.000818]
[1727973682908,0.342017,60380.0,60379.0,0.000818]
[1727973683186,0.342017,60380.0,60368.0,0.000817]
[1727973683187,0.55073303,60371.0,60368.0,0.000817]
[1727973683400,0.267647,60369.0,60368.0,0.000817]
[1727973683617,0.265653,60367.0,60366.0,0.001634]
[1727973683854,0.267653,60367.0,60366.0,0.001634]
[1727973684108,0.265653,60367.0,60366.0,0.001634]
[1727973684608,0.267653,60367.0,60366.0,0.001634]
[1727973684886,0.43083971,60367.0,60366.0,0.001634]
[1727973685101,0.44383971,60367.0,60366.0,0.002634]
[1727973685321,0.45583971,60367.0,60366.0,0.002634]
[1727973685574,0.44183971,60367.0,60366.0,0.002634]
[1727973685791,0.45583971,60367.0,60366.0,0.002634]
[1727973686012,0.44183971,60367.0,60366.0,0.002634]
[1727973686439,0.45583971,60367.0,60366.0,0.002634]
[1727973687090,0.45583971,60367.0,60366.0,0.001634]
[1727973687091,0.44483971,60367.0,60366.0,0.001634]
[1727973687335,0.45783971,60367.0,60366.0,0.002634]
[1727973688012,0.45783971,60367.0,60366.0,0.001634]
[1727973688013,0.44483971,60367.0,60366.0,0.001634]
[1727973688255,0.44383971,60367.0,60366.0,0.002634]
[1727973688473,0.45783971,60367.0,60366.0,0.002634]
[1727973688746,0.44483971,60367.0,60366.0,0.001634]
[1727973689227,0.42883971,60367.0,60366.0,0.001634]
[1727973689697,0.44283971,60367.0,60366.0,0.001634]
[1727973689925,0.279653,60367.0,60366.0,0.001634]
[1727973690148,0.291653,60367.0,60366.0,0.002634]
[1727973690828,0.279653,60367.0,60366.0,0.001634]
[1727973691044,0.4335156,60367.0,60366.0,0.002634]
[1727973691274,0.4475156,60367.0,60366.0,0.002634]
[1727973691507,0.4475156,60367.0,60366.0,0.001634]
[1727973691508,0.265653,60367.0,60366.0,0.001634]
[1727973691736,0.277653,60367.0,60366.0,0.002634]
[1727973691953,0.381677,60367.0,60366.0,0.002634]
[1727973692189,0.371677,60367.0,60366.0,0.002634]
[1727973692423,0.277677,60367.0,60366.0,0.002634]
[1727973692669,0.018,60367.0,60366.0,0.002634]
[1727973692886,0.183653,60367.0,60366.0,0.002634]
[1727973693124,0.165653,60367.0,60366.0,0.001634]
[1727973693360,0.331261,60376.0,60366.0,0.001634]
[1727973693361,0.24858514,60383.0,60366.0,0.001634]
[1727973693576,0.24858514,60383.0,60366.0,0.002634]
[1727973693577,0.008,60367.0,60366.0,0.002634]
[1727973693861,0.008,60367.0,60366.0,0.16829]
[1727973694077,0.165644,60371.0,60366.0,0.167288]
[1727973694297,0.006,60367.0,60366.0,0.001634]
[1727973694542,0.45674403,60367.0,60366.0,0.001634]
[1727973695026,0.45074403,60367.0,60366.0,0.001634]
[1727973695509,0.165653,60367.0,60366.0,0.001634]
[1727973695722,0.662592,60369.0,60366.0,0.001634]
[1727973695723,0.1,60369.0,60366.0,0.001634]
[1727973695943,0.01,60367.0,60366.0,0.16729]
[1727973696160,0.1,60369.0,60367.0,0.165652]
[1727973696425,0.1,60369.0,60366.0,0.001634]
[1727973696426,0.1,60369.0,60366.0,0.168289]
[1727973696647,0.1,60369.0,60367.0,0.165653]
[1727973697092,0.1,60369.0,60366.0,0.001634]
[1727973697093,0.101,60369.0,60366.0,0.001634]
[1727973697315,0.101,60369.0,60367.0,0.165653]
[1727973697539,0.004,60367.0,60366.0,0.16729]
[1727973697756,0.1,60369.0,60366.0,0.16729]
[1727973697977,0.1,60368.0,60366.0,0.16729]
[1727973698438,0.1,60368.0,60367.0,0.001]
[1727973698672,0.1,60368.0,60366.0,0.16729]
[1727973698859,0.1,60368.0,60366.0,0.16829]
[1727973699155,0.0938207,60369.0,60366.0,0.333944]
[1727973699372,0.165623,60378.0,60374.0,0.165632]
[1727973699591,0.165623,60378.0,60371.0,0.331283]
[1727973699811,0.57980914,60382.0,60371.0,0.331283]
[1727973699812,0.331243,60379.0,60371.0,0.331283]
[1727973700076,0.165623,60378.0,60374.0,0.165631]
[1727973700269,0.05798091,60382.0,60375.0,0.165631]
[1727973700530,0.05798091,60382.0,60367.0,0.354304]
[1727973700531,0.1,60378.0,60367.0,0.354304]
[1727973700744,0.265625,60378.0,60374.0,0.165632]
[1727973700970,0.1,60379.0,60377.0,0.165625]
[1727973701208,0.1,60379.0,60367.0,0.023]
[1727973701209,0.28509103,60378.0,60369.0,0.165645]
[1727973701468,0.28509103,60378.0,60370.0,0.24858514]
[1727973701469,0.165641,60372.0,60370.0,0.24858514]
[1727973701718,0.06396762,60377.0,60373.0,0.165636]
[1727973701719,0.165626,60377.0,60373.0,0.165636]
[1727973702196,0.334249,60378.0,60373.0,0.165636]
[1727973702432,0.1132706,60378.0,60375.0,0.16563]
[1727973702662,0.005,60378.0,60375.0,0.16563]
[1727973702894,0.167627,60377.0,60373.0,0.165635]
[1727973703137,0.165639,60372.0,60369.0,0.165646]
[1727973703381,0.165632,60375.0,60372.0,0.188639]
[1727973703848,0.0598892,60374.0,60372.0,0.188639]
[1727973704143,0.0598892,60374.0,60366.0,0.415342]
[1727973704355,0.331279,60372.0,60370.0,0.24858514]
[1727973704595,0.008,60378.0,60366.0,0.001634]
[1727973704829,0.165635,60374.0,60368.0,0.165648]
[1727973705071,0.331268,60375.0,60366.0,0.001634]
[1727973705306,0.33925,60378.0,60372.0,0.001]
[1727973705539,0.1,60379.0,60370.0,0.188644]
[1727973705769,0.167631,60375.0,60371.0,0.16564]
[1727973706431,0.165631,60375.0,60371.0,0.16564]
[1727973707318,0.331254,60377.0,60370.0,0.023]
[1727973707554,0.167633,60375.0,60370.0,0.023]
[1727973707773,0.002,60375.0,60370.0,0.023]
[1727973707991,0.002,60375.0,60368.0,0.188649]
[1727973708212,0.165634,60374.0,60371.0,0.165641]
[1727973708410,0.165634,60374.0,60367.0,0.331303]
[1727973708411,0.165638,60373.0,60370.0,0.023]
[1727973708632,0.002,60375.0,60370.0,0.354289]
[1727973708865,0.331251,60378.0,60370.0,0.188644]
[1727973708866,0.165634,60374.0,60370.0,0.188644]
[1727973709097,0.165637,60373.0,60368.0,0.3543]
[1727973709337,0.165637,60373.0,60370.0,0.023]
[1727973709559,0.165637,60373.0,60371.0,0.023]
[1727973709774,0.165637,60373.0,60367.0,0.331305]
[1727973709775,0.331267,60375.0,60367.0,0.331305]
[1727973710010,0.03645557,60374.0,60366.0,0.001634]
[1727973710246,0.002,60375.0,60366.0,0.001634]
[1727973710247,0.165653,60367.0,60366.0,0.001634]
[1727973711471,0.45074403,60367.0,60366.0,0.001634]
[1727973712219,0.45174403,60367.0,60366.0,0.005634]
[1727973712443,0.59530613,60367.0,60366.0,0.001634]
[1727973712655,0.3112151,60367.0,60366.0,0.001634]
[1727973713341,0.171653,60367.0,60366.0,0.007634]
[1727973713793,0.170653,60367.0,60366.0,0.001634]
[1727973714241,0.176653,60367.0,60366.0,0.001634]
[1727973714470,0.171653,60367.0,60366.0,0.001634]
[1727973714696,0.165653,60367.0,60366.0,0.001634]
[1727973714910,0.172653,60367.0,60366.0,0.001634]
[1727973715424,0.2571777,60367.0,60366.0,0.001634]
[1727973716062,0.2491777,60367.0,60366.0,0.001634]
[1727973716512,0.2521777,60367.0,60366.0,0.001634]
[1727973716984,0.2491777,60367.0,60366.0,0.001634]
[1727973717454,0.2511777,60367.0,60366.0,0.001634]
[1727973719121,0.3511777,60367.0,60366.0,0.001634]
[1727973719522,0.5273777,60367.0,60366.0,0.001634]
[1727973719737,0.5293777,60367.0,60366.0,0.001634]
[1727973719960,0.5273777,60367.0,60366.0,0.001634]
[1727973720177,0.5253777,60367.0,60366.0,0.001634]